Workbook

Sheet 1
A1: 附件1
A2: 麻江县事业单位2024年公开招聘工作人员综合成绩排名及拟入围体检人员名单
A3: 序号 | B3: 姓名 | C3: 报考单位 | D3: 职位代码 | E3: 笔试成绩 | G3: 面试成绩 | I3: 综合 成绩 | J3: 本职位综合排名 | K3: 是否入围体检 | L3: 备注
E4: 笔试环节成绩 | F4: 占总成绩百分比50% | G4: 面试环节成绩 | H4: 占总成绩百分比50%
A5: 1 | B5: 张纱 | C5: 麻江县消防综合事务中心 | D5: 22603007601 | E5: 66.83 | F5: 33.42 | G5: 84.60 | H5: 42.30 | I5: 75.72 | J5: 1 | K5: 是
A6: 2 | B6: 李长松 | C6: 麻江县消防综合事务中心 | D6: 22603007601 | E6: 66.00 | F6: 33.00 | G6: 81.80 | H6: 40.90 | I6: 73.90 | J6: 2
A7: 3 | B7: 杨涛 | C7: 麻江县消防综合事务中心 | D7: 22603007601 | E7: 68.00 | F7: 34.00 | G7: 76.40 | H7: 38.20 | I7: 72.20 | J7: 3
A8: 4 | B8: 谢义雯 | C8: 麻江县消防综合事务中心 | D8: 22603007602 | E8: 60.17 | F8: 30.09 | G8: 82.60 | H8: 41.30 | I8: 71.39 | J8: 1 | K8: 是
A9: 5 | B9: 杨洋 | C9: 麻江县消防综合事务中心 | D9: 22603007602 | E9: 55.83 | F9: 27.92 | G9: 77.60 | H9: 38.80 | I9: 66.72 | J9: 2
A10: 6 | B10: 杨宽 | C10: 麻江县消防综合事务中心 | D10: 22603007602 | E10: 51.50 | F10: 25.75 | G10: 81.00 | H10: 40.50 | I10: 66.25 | J10: 3
A11: 7 | B11: 吴洪琼 | C11: 麻江县坝芒布依族乡人力资源和社会保障服务中心 | D11: 22603007701 | E11: 53.00 | F11: 26.50 | G11: 79.60 | H11: 39.80 | I11: 66.30 | J11: 1 | K11: 是
A12: 8 | B12: 罗洪九 | C12: 麻江县坝芒布依族乡人力资源和社会保障服务中心 | D12: 22603007701 | E12: 36.00 | F12: 18.00 | G12: 76.00 | H12: 38.00 | I12: 56.00 | J12: 2
A13: 9 | B13: 金庆军 | C13: 麻江县坝芒布依族乡人力资源和社会保障服务中心 | D13: 22603007701 | E13: 27.17 | F13: 13.59 | G13: 46.40 | H13: 23.20 | I13: 36.79 | J13: 3
A14: 10 | B14: 李小英 | C14: 麻江县坝芒布依族乡财政所 | D14: 22603007801 | E14: 58.17 | F14: 29.09 | G14: 79.80 | H14: 39.90 | I14: 68.99 | J14: 1 | K14: 是
A15: 11 | B15: 陆承华 | C15: 麻江县坝芒布依族乡财政所 | D15: 22603007801 | E15: 54.50 | F15: 27.25 | G15: 79.40 | H15: 39.70 | I15: 66.95 | J15: 2
A16: 12 | B16: 胡朝红 | C16: 麻江县坝芒布依族乡财政所 | D16: 22603007801 | E16: 53.17 | F16: 26.59 | G16: 79.20 | H16: 39.60 | I16: 66.19 | J16: 3
A17: 13 | B17: 罗津津 | C17: 麻江县谷硐镇财政所 | D17: 22603007901 | E17: 61.50 | F17: 30.75 | G17: 80.60 | H17: 40.30 | I17: 71.05 | J17: 1 | K17: 是
A18: 14 | B18: 程道香 | C18: 麻江县谷硐镇财政所 | D18: 22603007901 | E18: 60.67 | F18: 30.34 | G18: 77.80 | H18: 38.90 | I18: 69.24 | J18: 2
A19: 15 | B19: 熊梓骏 | C19: 麻江县谷硐镇财政所 | D19: 22603007901 | E19: 58.00 | F19: 29.00 | G19: 77.80 | H19: 38.90 | I19: 67.90 | J19: 3
A20: 16 | B20: 李德宇 | C20: 麻江县景阳片区便民服务中心 | D20: 22603008001 | E20: 70.50 | F20: 35.25 | G20: 80.80 | H20: 40.40 | I20: 75.65 | J20: 1 | K20: 是
A21: 17 | B21: 李精翠 | C21: 麻江县景阳片区便民服务中心 | D21: 22603008001 | E21: 61.33 | F21: 30.67 | G21: 84.80 | H21: 42.40 | I21: 73.07 | J21: 2
A22: 18 | B22: 兰中娟 | C22: 麻江县景阳片区便民服务中心 | D22: 22603008001 | E22: 58.83 | F22: 29.42 | G22: 0.00 | H22: 0.00 | I22: 29.42 | J22: 3
A23: 19 | B23: 杨星莲 | C23: 麻江县谷硐镇农业服务中心 | D23: 22603008101 | E23: 50.33 | F23: 25.17 | G23: 79.40 | H23: 39.70 | I23: 64.87 | J23: 1 | K23: 是
A24: 20 | B24: 李章娥 | C24: 麻江县谷硐镇农业服务中心 | D24: 22603008101 | E24: 50.83 | F24: 25.42 | G24: 78.80 | H24: 39.40 | I24: 64.82 | J24: 2
A25: 21 | B25: 杨平 | C25: 麻江县谷硐镇农业服务中心 | D25: 22603008101 | E25: 50.00 | F25: 25.00 | G25: 79.4 | H25: 39.70 | I25: 64.70 | J25: 3
A26: 22 | B26: 程琳 | C26: 麻江县龙山镇财政所 | D26: 22603008201 | E26: 57.33 | F26: 28.67 | G26: 83.40 | H26: 41.70 | I26: 70.37 | J26: 1 | K26: 是
A27: 23 | B27: 吴和金 | C27: 麻江县龙山镇财政所 | D27: 22603008201 | E27: 55.67 | F27: 27.84 | G27: 81.80 | H27: 40.90 | I27: 68.74 | J27: 2
A28: 24 | B28: 周树莲 | C28: 麻江县龙山镇财政所 | D28: 22603008201 | E28: 55.83 | F28: 27.92 | G28: 79.00 | H28: 39.50 | I28: 67.42 | J28: 3
A29: 25 | B29: 龙杰 | C29: 麻江县龙山镇乡村振兴工作站 | D29: 22603008301 | E29: 65.33 | F29: 32.67 | G29: 85.00 | H29: 42.50 | I29: 75.17 | J29: 1 | K29: 是
A30: 26 | B30: 刘明豪 | C30: 麻江县龙山镇乡村振兴工作站 | D30: 22603008301 | E30: 63.33 | F30: 31.67 | G30: 79.60 | H30: 39.80 | I30: 71.47 | J30: 2
A31: 27 | B31: 韦天群 | C31: 麻江县龙山镇乡村振兴工作站 | D31: 22603008301 | E31: 63.33 | F31: 31.67 | G31: 79.60 | H31: 39.80 | I31: 71.47 | J31: 2
A32: 28 | B32: 张学桐 | C32: 麻江县谷硐镇中心卫生院 | D32: 22603008401 | E32: 50.93 | F32: 25.47 | G32: 82.20 | H32: 41.10 | I32: 66.57 | J32: 1 | K32: 是
A33: 29 | B33: 腾先凤 | C33: 麻江县谷硐镇中心卫生院 | D33: 22603008401 | E33: 51.83 | F33: 25.92 | G33: 77.00 | H33: 38.50 | I33: 64.42 | J33: 2
A34: 30 | B34: 韦荣艳 | C34: 麻江县坝芒乡卫生院 | D34: 22603008501 | E34: 55.47 | F34: 27.74 | G34: 76.6 | H34: 38.30 | I34: 66.04 | J34: 1 | K34: 是
A35: 31 | B35: 孟树森 | C35: 麻江县坝芒乡卫生院 | D35: 22603008501 | E35: 52.87 | F35: 26.44 | G35: 70.40 | H35: 35.20 | I35: 61.64 | J35: 2
A36: 32 | B36: 郑英邦 | C36: 麻江县坝芒乡卫生院 | D36: 22603008501 | E36: 55.37 | F36: 27.69 | G36: 0.00 | H36: 0.00 | I36: 27.69 | J36: 3
A37: 33 | B37: 罗红艳 | C37: 麻江县坝芒乡卫生院 | D37: 22603008502 | E37: 52.32 | F37: 26.16 | G37: 85.20 | H37: 42.60 | I37: 68.76 | J37: 1 | K37: 是
A38: 34 | B38: 吴和鑫 | C38: 麻江县坝芒乡卫生院 | D38: 22603008502 | E38: 59.12 | F38: 29.56 | G38: 76.60 | H38: 38.30 | I38: 67.86 | J38: 2
A39: 35 | B39: 王春艳 | C39: 麻江县坝芒乡卫生院 | D39: 22603008502 | E39: 50.20 | F39: 25.10 | G39: 75.00 | H39: 37.50 | I39: 62.60 | J39: 3
A40: 36 | B40: 吴学杰 | C40: 麻江县坝芒乡卫生院 | D40: 22603008503 | E40: 55.27 | F40: 27.64 | G40: 89.40 | H40: 44.70 | I40: 72.34 | J40: 1 | K40: 是
A41: 37 | B41: 沈平州 | C41: 麻江县坝芒乡卫生院 | D41: 22603008503 | E41: 47.90 | F41: 23.95 | G41: 62.60 | H41: 31.30 | I41: 55.25 | J41: 2
A42: 38 | B42: 吴开丽 | C42: 麻江县坝芒乡卫生院 | D42: 22603008503 | E42: 42.17 | F42: 21.09 | G42: 0.00 | H42: 0.00 | I42: 21.09 | J42: 3
A43: 39 | B43: 杨治磊 | C43: 麻江县第二中学 | D43: 22603008601 | E43: 61.33 | F43: 30.67 | G43: 88.80 | H43: 44.40 | I43: 75.07 | J43: 1 | K43: 是
A44: 40 | B44: 杨三妹 | C44: 麻江县第二中学 | D44: 22603008601 | E44: 65.00 | F44: 32.50 | G44: 84.82 | H44: 42.41 | I44: 74.91 | J44: 2
A45: 41 | B45: 王娟 | C45: 麻江县第二中学 | D45: 22603008601 | E45: 60.33 | F45: 30.17 | G45: 83.00 | H45: 41.50 | I45: 71.67 | J45: 3
A46: 42 | B46: 吴开敏 | C46: 麻江县第二中学 | D46: 22603008602 | E46: 61.00 | F46: 30.50 | G46: 85.00 | H46: 42.50 | I46: 73.00 | J46: 1 | K46: 是
A47: 43 | B47: 张再芳 | C47: 麻江县第二中学 | D47: 22603008602 | E47: 58.50 | F47: 29.25 | G47: 84.00 | H47: 42.00 | I47: 71.25 | J47: 2 | K47: 是
A48: 44 | B48: 王海燕 | C48: 麻江县第二中学 | D48: 22603008602 | E48: 58.33 | F48: 29.17 | G48: 82.96 | H48: 41.48 | I48: 70.65 | J48: 3
A49: 45 | B49: 唐青花 | C49: 麻江县第二中学 | D49: 22603008602 | E49: 58.50 | F49: 29.25 | G49: 78.80 | H49: 39.40 | I49: 68.65 | J49: 4
A50: 46 | B50: 蒋江平 | C50: 麻江县第二中学 | D50: 22603008602 | E50: 53.83 | F50: 26.92 | G50: 81.40 | H50: 40.70 | I50: 67.62 | J50: 5
A51: 47 | B51: 蒙春焕 | C51: 麻江县第二中学 | D51: 22603008602 | E51: 55.50 | F51: 27.75 | G51: 78.46 | H51: 39.23 | I51: 66.98 | J51: 6
A52: 48 | B52: 陈亚 | C52: 麻江县第二中学 | D52: 22603008603 | E52: 68.00 | F52: 34.00 | G52: 86.80 | H52: 43.40 | I52: 77.40 | J52: 1 | K52: 是
A53: 49 | B53: 徐丽玉 | C53: 麻江县第二中学 | D53: 22603008603 | E53: 65.83 | F53: 32.92 | G53: 87.22 | H53: 43.61 | I53: 76.53 | J53: 2 | K53: 是
A54: 50 | B54: 王光芸 | C54: 麻江县第二中学 | D54: 22603008603 | E54: 55.50 | F54: 27.75 | G54: 83.60 | H54: 41.80 | I54: 69.55 | J54: 3
A55: 51 | B55: 赵小灵 | C55: 麻江县第二中学 | D55: 22603008603 | E55: 55.50 | F55: 27.75 | G55: 81.60 | H55: 40.80 | I55: 68.55 | J55: 4
A56: 52 | B56: 吴正阳 | C56: 麻江县第二中学 | D56: 22603008603 | E56: 56.17 | F56: 28.09 | G56: 78.26 | H56: 39.13 | I56: 67.22 | J56: 5
A57: 53 | B57: 熊仕秀 | C57: 麻江县第二中学 | D57: 22603008603 | E57: 55.50 | F57: 27.75 | G57: 77.12 | H57: 38.56 | I57: 66.31 | J57: 6
A58: 54 | B58: 杨荣宪 | C58: 麻江县第二中学 | D58: 22603008604 | E58: 55.50 | F58: 27.75 | G58: 79.20 | H58: 39.60 | I58: 67.35 | J58: 1 | K58: 是
A59: 55 | B59: 陆翔翔 | C59: 麻江县第二中学 | D59: 22603008604 | E59: 45.50 | F59: 22.75 | G59: 84.36 | H59: 42.18 | I59: 64.93 | J59: 2
A60: 56 | B60: 罗开荣 | C60: 麻江县第二中学 | D60: 22603008604 | E60: 46.00 | F60: 23.00 | G60: 0.00 | H60: 0.00 | I60: 23.00 | J60: 3
A61: 57 | B61: 陆万江 | C61: 麻江县第二中学 | D61: 22603008605 | E61: 60.33 | F61: 30.17 | G61: 82.80 | H61: 41.40 | I61: 71.57 | J61: 1 | K61: 是
A62: 58 | B62: 金元叶 | C62: 麻江县第二中学 | D62: 22603008605 | E62: 53.50 | F62: 26.75 | G62: 79.20 | H62: 39.60 | I62: 66.35 | J62: 2
A63: 59 | B63: 吴和昱 | C63: 麻江县第二中学 | D63: 22603008605 | E63: 54.17 | F63: 27.09 | G63: 76.20 | H63: 38.10 | I63: 65.19 | J63: 3
A64: 60 | B64: 冷启建 | C64: 麻江县第二中学 | D64: 22603008607 | E64: 54.17 | F64: 27.09 | G64: 86.20 | H64: 43.10 | I64: 70.19 | J64: 1 | K64: 是
A65: 61 | B65: 李春光 | C65: 麻江县第二中学 | D65: 22603008607 | E65: 57.33 | F65: 28.67 | G65: 78.06 | H65: 39.03 | I65: 67.70 | J65: 2
A66: 62 | B66: 陈林艳 | C66: 麻江县第二中学 | D66: 22603008607 | E66: 56.33 | F66: 28.17 | G66: 75.80 | H66: 37.90 | I66: 66.07 | J66: 3
A67: 63 | B67: 杨小琴 | C67: 麻江县第二中学 | D67: 22603008608 | E67: 69.83 | F67: 34.92 | G67: 85.26 | H67: 42.63 | I67: 77.55 | J67: 1 | K67: 是
A68: 64 | B68: 李佳美 | C68: 麻江县第二中学 | D68: 22603008608 | E68: 59.83 | F68: 29.92 | G68: 82.80 | H68: 41.40 | I68: 71.32 | J68: 2
A69: 65 | B69: 罗玉昭 | C69: 麻江县第二中学 | D69: 22603008608 | E69: 61.17 | F69: 30.59 | G69: 79.40 | H69: 39.70 | I69: 70.29 | J69: 3
A70: 66 | B70: 唐政富 | C70: 麻江县第二中学 | D70: 22603008609 | E70: 58.83 | F70: 29.42 | G70: 86.73 | H70: 43.37 | I70: 72.79 | J70: 1 | K70: 是
A71: 67 | B71: 杨溢 | C71: 麻江县第二中学 | D71: 22603008609 | E71: 56.83 | F71: 28.42 | G71: 88.13 | H71: 44.07 | I71: 72.49 | J71: 2 | K71: 是
A72: 68 | B72: 杨振彬 | C72: 麻江县第二中学 | D72: 22603008609 | E72: 53.50 | F72: 26.75 | G72: 88.64 | H72: 44.32 | I72: 71.07 | J72: 3 | K72: 是
A73: 69 | B73: 欧陆生 | C73: 麻江县第二中学 | D73: 22603008609 | E73: 54.17 | F73: 27.09 | G73: 84.55 | H73: 42.28 | I73: 69.37 | J73: 4
A74: 70 | B74: 郑雪钰 | C74: 麻江县第二中学 | D74: 22603008609 | E74: 55.83 | F74: 27.92 | G74: 82.86 | H74: 41.43 | I74: 69.35 | J74: 5
A75: 71 | B75: 赵自乐 | C75: 麻江县第二中学 | D75: 22603008609 | E75: 56.00 | F75: 28.00 | G75: 82.43 | H75: 41.22 | I75: 69.22 | J75: 6
A76: 72 | B76: 洪棋茗 | C76: 麻江县第二中学 | D76: 22603008609 | E76: 55.17 | F76: 27.59 | G76: 82.39 | H76: 41.20 | I76: 68.79 | J76: 7
A77: 73 | B77: 潘英花 | C77: 麻江县第二中学 | D77: 22603008609 | E77: 55.00 | F77: 27.50 | G77: 62.14 | H77: 31.07 | I77: 58.57 | J77: 8
A78: 74 | B78: 吴冬秀 | C78: 麻江县第二中学 | D78: 22603008609 | E78: 60.67 | F78: 30.34 | G78: 0.00 | H78: 0.00 | I78: 30.34 | J78: 9
A79: 75 | B79: 徐鸿睿 | C79: 麻江县第二中学 | D79: 22603008610 | E79: 57.00 | F79: 28.50 | G79: 86.63 | H79: 43.32 | I79: 71.82 | J79: 1 | K79: 是
A80: 76 | B80: 孙秀霞 | C80: 麻江县第二中学 | D80: 22603008610 | E80: 53.50 | F80: 26.75 | G80: 86.81 | H80: 43.41 | I80: 70.16 | J80: 2 | K80: 是
A81: 77 | B81: 李光文 | C81: 麻江县第二中学 | D81: 22603008610 | E81: 49.67 | F81: 24.84 | G81: 79.23 | H81: 39.62 | I81: 64.46 | J81: 3
A82: 78 | B82: 尹远艳 | C82: 麻江县第二中学 | D82: 22603008610 | E82: 47.17 | F82: 23.59 | G82: 76.75 | H82: 38.38 | I82: 61.97 | J82: 4
A83: 79 | B83: 邱芝婷 | C83: 麻江县第二中学 | D83: 22603008610 | E83: 56.00 | F83: 28.00 | G83: 67.16 | H83: 33.58 | I83: 61.58 | J83: 5
A84: 80 | B84: 罗基祥 | C84: 麻江县第二中学 | D84: 22603008610 | E84: 44.83 | F84: 22.42 | G84: 75.58 | H84: 37.79 | I84: 60.21 | J84: 6
A85: 81 | B85: 张路加 | C85: 麻江县第二中学 | D85: 22603008611 | E85: 59.33 | F85: 29.67 | G85: 86.06 | H85: 43.03 | I85: 72.70 | J85: 1 | K85: 是
A86: 82 | B86: 石义全 | C86: 麻江县第二中学 | D86: 22603008611 | E86: 52.67 | F86: 26.34 | G86: 82.60 | H86: 41.30 | I86: 67.64 | J86: 2
A87: 83 | B87: 杨昌兰 | C87: 麻江县第二中学 | D87: 22603008611 | E87: 54.00 | F87: 27.00 | G87: 77.80 | H87: 38.90 | I87: 65.90 | J87: 3
A88: 84 | B88: 周敏 | C88: 麻江县第二中学 | D88: 22603008612 | E88: 67.00 | F88: 33.50 | G88: 89.66 | H88: 44.83 | I88: 78.33 | J88: 1 | K88: 是
A89: 85 | B89: 雷小燕 | C89: 麻江县第二中学 | D89: 22603008612 | E89: 62.67 | F89: 31.34 | G89: 91.01 | H89: 45.51 | I89: 76.85 | J89: 2 | K89: 是
A90: 86 | B90: 唐必珍 | C90: 麻江县第二中学 | D90: 22603008612 | E90: 64.17 | F90: 32.09 | G90: 88.74 | H90: 44.37 | I90: 76.46 | J90: 3 | K90: 是
A91: 87 | B91: 杨露芹 | C91: 麻江县第二中学 | D91: 22603008612 | E91: 63.50 | F91: 31.75 | G91: 88.29 | H91: 44.15 | I91: 75.90 | J91: 4
A92: 88 | B92: 杨玉珏 | C92: 麻江县第二中学 | D92: 22603008612 | E92: 62.33 | F92: 31.17 | G92: 86.44 | H92: 43.22 | I92: 74.39 | J92: 5
A93: 89 | B93: 杨相依 | C93: 麻江县第二中学 | D93: 22603008612 | E93: 60.17 | F93: 30.09 | G93: 88.43 | H93: 44.22 | I93: 74.31 | J93: 6
A94: 90 | B94: 吴爱萍 | C94: 麻江县第二中学 | D94: 22603008612 | E94: 58.83 | F94: 29.42 | G94: 83.80 | H94: 41.90 | I94: 71.32 | J94: 7
A95: 91 | B95: 雷荣华 | C95: 麻江县第二中学 | D95: 22603008612 | E95: 59.50 | F95: 29.75 | G95: 82.88 | H95: 41.44 | I95: 71.19 | J95: 8
A96: 92 | B96: 徐悦航 | C96: 麻江县第二中学 | D96: 22603008612 | E96: 58.33 | F96: 29.17 | G96: 84.03 | H96: 42.02 | I96: 71.19 | J96: 9
A97: 93 | B97: 李时桃 | C97: 麻江县第二中学 | D97: 22603008613 | E97: 56.67 | F97: 28.34 | G97: 87.95 | H97: 43.98 | I97: 72.32 | J97: 1 | K97: 是
A98: 94 | B98: 刘洪鑫 | C98: 麻江县第二中学 | D98: 22603008613 | E98: 57.33 | F98: 28.67 | G98: 81.87 | H98: 40.94 | I98: 69.61 | J98: 2 | K98: 是
A99: 95 | B99: 李光菊 | C99: 麻江县第二中学 | D99: 22603008613 | E99: 48.00 | F99: 24.00 | G99: 84.75 | H99: 42.38 | I99: 66.38 | J99: 3
A100: 96 | B100: 欧仕梅 | C100: 麻江县第二中学 | D100: 22603008613 | E100: 44.67 | F100: 22.34 | G100: 83.65 | H100: 41.83 | I100: 64.17 | J100: 4
A101: 97 | B101: 魏向美 | C101: 麻江县第二中学 | D101: 22603008613 | E101: 45.33 | F101: 22.67 | G101: 71.1 | H101: 35.55 | I101: 58.22 | J101: 5
A102: 98 | B102: 赵璐 | C102: 麻江县第二中学 | D102: 22603008614 | E102: 63.83 | F102: 31.92 | G102: 82.6 | H102: 41.30 | I102: 73.22 | J102: 1 | K102: 是
A103: 99 | B103: 蒲凤蓉 | C103: 麻江县第二中学 | D103: 22603008614 | E103: 59.33 | F103: 29.67 | G103: 83.60 | H103: 41.80 | I103: 71.47 | J103: 2 | K103: 是
A104: 100 | B104: 左淼 | C104: 麻江县第二中学 | D104: 22603008614 | E104: 55.33 | F104: 27.67 | G104: 82.20 | H104: 41.10 | I104: 68.77 | J104: 3
A105: 101 | B105: 王玲玲 | C105: 麻江县第二中学 | D105: 22603008614 | E105: 56.00 | F105: 28.00 | G105: 77.00 | H105: 38.50 | I105: 66.50 | J105: 4
A106: 102 | B106: 龙雨娟 | C106: 麻江县第二中学 | D106: 22603008614 | E106: 55.17 | F106: 27.59 | G106: 75.20 | H106: 37.60 | I106: 65.19 | J106: 5
A107: 103 | B107: 黄明雪 | C107: 麻江县第二中学 | D107: 22603008614 | E107: 54.50 | F107: 27.25 | G107: 75.60 | H107: 37.80 | I107: 65.05 | J107: 6
A108: 104 | B108: 朱凤琴 | C108: 麻江县第二中学 | D108: 22603008615 | E108: 57.00 | F108: 28.50 | G108: 85.20 | H108: 42.60 | I108: 71.10 | J108: 1 | K108: 是
A109: 105 | B109: 罗玲 | C109: 麻江县第二中学 | D109: 22603008615 | E109: 57.83 | F109: 28.92 | G109: 83.20 | H109: 41.60 | I109: 70.52 | J109: 2 | K109: 是
A110: 106 | B110: 吴东菊 | C110: 麻江县第二中学 | D110: 22603008615 | E110: 58.33 | F110: 29.17 | G110: 82.00 | H110: 41.00 | I110: 70.17 | J110: 3 | K110: 是
A111: 107 | B111: 杨凯 | C111: 麻江县第二中学 | D111: 22603008615 | E111: 56.50 | F111: 28.25 | G111: 82.80 | H111: 41.40 | I111: 69.65 | J111: 4 | K111: 是
A112: 108 | B112: 陆英 | C112: 麻江县第二中学 | D112: 22603008615 | E112: 58.17 | F112: 29.09 | G112: 81.00 | H112: 40.50 | I112: 69.59 | J112: 5
A113: 109 | B113: 安晓碟 | C113: 麻江县第二中学 | D113: 22603008615 | E113: 57.83 | F113: 28.92 | G113: 80.90 | H113: 40.45 | I113: 69.37 | J113: 6
A114: 110 | B114: 杨兰英 | C114: 麻江县第二中学 | D114: 22603008615 | E114: 59.67 | F114: 29.84 | G114: 78.00 | H114: 39.00 | I114: 68.84 | J114: 7
A115: 111 | B115: 蹇诗才 | C115: 麻江县第二中学 | D115: 22603008615 | E115: 58.00 | F115: 29.00 | G115: 79.60 | H115: 39.80 | I115: 68.80 | J115: 8
A116: 112 | B116: 水定珍 | C116: 麻江县第二中学 | D116: 22603008615 | E116: 57.50 | F116: 28.75 | G116: 80.00 | H116: 40.00 | I116: 68.75 | J116: 9
A117: 113 | B117: 王晶剑 | C117: 麻江县第二中学 | D117: 22603008615 | E117: 57.00 | F117: 28.50 | G117: 80.00 | H117: 40.00 | I117: 68.50 | J117: 10
A118: 114 | B118: 黄苹 | C118: 麻江县第二中学 | D118: 22603008615 | E118: 58.00 | F118: 29.00 | G118: 77.80 | H118: 38.90 | I118: 67.90 | J118: 11
A119: 115 | B119: 吴水保 | C119: 麻江县第二中学 | D119: 22603008615 | E119: 57.33 | F119: 28.67 | G119: 69.00 | H119: 34.50 | I119: 63.17 | J119: 12
A120: 116 | B120: 陈克双 | C120: 麻江县第二小学 | D120: 22603008701 | E120: 70.83 | F120: 35.42 | G120: 80.40 | H120: 40.20 | I120: 75.62 | J120: 1 | K120: 是
A121: 117 | B121: 文婧 | C121: 麻江县第二小学 | D121: 22603008701 | E121: 60.67 | F121: 30.34 | G121: 81.60 | H121: 40.80 | I121: 71.14 | J121: 2 | K121: 是
A122: 118 | B122: 彭方雪 | C122: 麻江县第二小学 | D122: 22603008701 | E122: 53.00 | F122: 26.50 | G122: 87.60 | H122: 43.80 | I122: 70.30 | J122: 3
A123: 119 | B123: 田仁琪 | C123: 麻江县第二小学 | D123: 22603008701 | E123: 52.67 | F123: 26.34 | G123: 83.60 | H123: 41.80 | I123: 68.14 | J123: 4
A124: 120 | B124: 杨昌燕 | C124: 麻江县第二小学 | D124: 22603008701 | E124: 50.17 | F124: 25.09 | G124: 72.40 | H124: 36.20 | I124: 61.29 | J124: 5
A125: 121 | B125: 吴秀桃 | C125: 麻江县第二小学 | D125: 22603008701 | E125: 51.67 | F125: 25.84 | G125: 69.60 | H125: 34.80 | I125: 60.64 | J125: 6
A126: 122 | B126: 欧奕 | C126: 麻江县第二小学 | D126: 22603008702 | E126: 65.33 | F126: 32.67 | G126: 82.20 | H126: 41.10 | I126: 73.77 | J126: 1 | K126: 是
A127: 123 | B127: 邓承米 | C127: 麻江县第二小学 | D127: 22603008702 | E127: 60.33 | F127: 30.17 | G127: 85.80 | H127: 42.90 | I127: 73.07 | J127: 2 | K127: 是
A128: 124 | B128: 张婷 | C128: 麻江县第二小学 | D128: 22603008702 | E128: 59.00 | F128: 29.50 | G128: 82.60 | H128: 41.30 | I128: 70.80 | J128: 3
A129: 125 | B129: 潘胜桃 | C129: 麻江县第二小学 | D129: 22603008702 | E129: 61.17 | F129: 30.59 | G129: 80.00 | H129: 40.00 | I129: 70.59 | J129: 4
A130: 126 | B130: 胡小霞 | C130: 麻江县第二小学 | D130: 22603008702 | E130: 57.83 | F130: 28.92 | G130: 82.00 | H130: 41.00 | I130: 69.92 | J130: 5
A131: 127 | B131: 冉佳琪 | C131: 麻江县第二小学 | D131: 22603008702 | E131: 57.67 | F131: 28.84 | G131: 78.20 | H131: 39.10 | I131: 67.94 | J131: 6
A132: 128 | B132: 熊志琴 | C132: 麻江县第二小学 | D132: 22603008703 | E132: 63.83 | F132: 31.92 | G132: 82.52 | H132: 41.26 | I132: 73.18 | J132: 1 | K132: 是
A133: 129 | B133: 任欢欢 | C133: 麻江县第二小学 | D133: 22603008703 | E133: 60.33 | F133: 30.17 | G133: 85.58 | H133: 42.79 | I133: 72.96 | J133: 2 | K133: 是
A134: 130 | B134: 覃兰兰 | C134: 麻江县第二小学 | D134: 22603008703 | E134: 58.00 | F134: 29.00 | G134: 87.56 | H134: 43.78 | I134: 72.78 | J134: 3 | K134: 是
A135: 131 | B135: 杨长芳 | C135: 麻江县第二小学 | D135: 22603008703 | E135: 59.17 | F135: 29.59 | G135: 85.08 | H135: 42.54 | I135: 72.13 | J135: 4 | K135: 是
A136: 132 | B136: 曾欣怡 | C136: 麻江县第二小学 | D136: 22603008703 | E136: 57.83 | F136: 28.92 | G136: 85.88 | H136: 42.94 | I136: 71.86 | J136: 5
A137: 133 | B137: 万修芬 | C137: 麻江县第二小学 | D137: 22603008703 | E137: 59.33 | F137: 29.67 | G137: 83.34 | H137: 41.67 | I137: 71.34 | J137: 6
A138: 134 | B138: 石倩 | C138: 麻江县第二小学 | D138: 22603008703 | E138: 59.00 | F138: 29.50 | G138: 83.02 | H138: 41.51 | I138: 71.01 | J138: 7
A139: 135 | B139: 吴慧 | C139: 麻江县第二小学 | D139: 22603008703 | E139: 61.83 | F139: 30.92 | G139: 78.32 | H139: 39.16 | I139: 70.08 | J139: 8
A140: 136 | B140: 龙继英 | C140: 麻江县第二小学 | D140: 22603008703 | E140: 59.17 | F140: 29.59 | G140: 80.70 | H140: 40.35 | I140: 69.94 | J140: 9
A141: 137 | B141: 余琴英 | C141: 麻江县第二小学 | D141: 22603008703 | E141: 60.50 | F141: 30.25 | G141: 75.06 | H141: 37.53 | I141: 67.78 | J141: 10
A142: 138 | B142: 王楠 | C142: 麻江县第二小学 | D142: 22603008703 | E142: 57.67 | F142: 28.84 | G142: 76.80 | H142: 38.40 | I142: 67.24 | J142: 11
A143: 139 | B143: 兰朝娜 | C143: 麻江县第二小学 | D143: 22603008703 | E143: 58.83 | F143: 29.42 | G143: 0.00 | H143: 0.00 | I143: 29.42 | J143: 12
A144: 140 | B144: 莫邦莲 | C144: 麻江县第二小学 | D144: 22603008704 | G144: 84.65 | I144: 84.65 | J144: 1 | K144: 是 | L144: 直接入围面试
A145: 141 | B145: 李玉青 | C145: 麻江县第二小学 | D145: 22603008705 | E145: 60.33 | F145: =ROUND(E145/2,2) -> 30.17 | G145: 83.44 | H145: =ROUND(G145/2,2) -> 41.72 | I145: =F145+H145 -> 71.89 | J145: 1 | K145: 是
A146: 142 | B146: 丁莹悦 | C146: 麻江县第二小学 | D146: 22603008705 | E146: 56.33 | F146: 28.17 | G146: 85.18 | H146: 42.59 | I146: 70.76 | J146: 2
A147: 143 | B147: 杨恒 | C147: 麻江县第二小学 | D147: 22603008705 | E147: 56.83 | F147: 28.42 | G147: 83.94 | H147: 41.97 | I147: 70.39 | J147: 3
A148: 144 | B148: 李媛媛 | C148: 麻江县第二小学 | D148: 22603008706 | E148: 62.50 | F148: 31.25 | G148: 83.10 | H148: 41.55 | I148: 72.80 | J148: 1 | K148: 是
A149: 145 | B149: 吴昌兰 | C149: 麻江县第二小学 | D149: 22603008706 | E149: 52.50 | F149: 26.25 | G149: 79.36 | H149: 39.68 | I149: 65.93 | J149: 2 | K149: 是
A150: 146 | B150: 杨胜英 | C150: 麻江县第二小学 | D150: 22603008706 | E150: 58.33 | F150: 29.17 | G150: 62.64 | H150: 31.32 | I150: 60.49 | J150: 3
A151: 147 | B151: 罗廷艳 | C151: 麻江县第二小学 | D151: 22603008706 | E151: 49.17 | F151: 24.59 | G151: 0.00 | H151: 0.00 | I151: 24.59 | J151: 4
A152: 148 | B152: 陈国云 | C152: 麻江县第二小学 | D152: 22603008706 | E152: 39.67 | F152: 19.84 | G152: 0.00 | H152: 0.00 | I152: 19.84 | J152: 5
A153: 149 | B153: 陈君菲 | C153: 麻江县第二小学 | D153: 22603008707 | E153: 58.33 | F153: 29.17 | G153: 85.40 | H153: 42.70 | I153: 71.87 | J153: 1 | K153: 是
A154: 150 | B154: 刘烨 | C154: 麻江县第二小学 | D154: 22603008707 | E154: 58.17 | F154: 29.09 | G154: 84.00 | H154: 42.00 | I154: 71.09 | J154: 2
A155: 151 | B155: 杨光星 | C155: 麻江县第二小学 | D155: 22603008707 | E155: 58.00 | F155: 29.00 | G155: 82.50 | H155: 41.25 | I155: 70.25 | J155: 3
A156: 152 | B156: 潘奇 | C156: 麻江县第二小学 | D156: 22603008708 | E156: 50.00 | F156: 25.00 | G156: 81.50 | H156: 40.75 | I156: 65.75 | J156: 1 | K156: 是
A157: 153 | B157: 刘胡杰 | C157: 麻江县第二小学 | D157: 22603008708 | E157: 49.33 | F157: 24.67 | G157: 78.82 | H157: 39.41 | I157: 64.08 | J157: 2 | K157: 是
A158: 154 | B158: 杨义群 | C158: 麻江县第二小学 | D158: 22603008708 | E158: 44.67 | F158: 22.34 | G158: 81.56 | H158: 40.78 | I158: 63.12 | J158: 3
A159: 155 | B159: 李珺玲 | C159: 麻江县第二小学 | D159: 22603008708 | E159: 43.17 | F159: 21.59 | G159: 79.50 | H159: 39.75 | I159: 61.34 | J159: 4
A160: 156 | B160: 张佳佳 | C160: 麻江县第二小学 | D160: 22603008709 | E160: 55.33 | F160: 27.67 | G160: 85.96 | H160: 42.98 | I160: 70.65 | J160: 1 | K160: 是
A161: 157 | B161: 李洪敏 | C161: 麻江县第二小学 | D161: 22603008709 | E161: 56.67 | F161: 28.34 | G161: 84.14 | H161: 42.07 | I161: 70.41 | J161: 2 | K161: 是
A162: 158 | B162: 杨章彬 | C162: 麻江县第二小学 | D162: 22603008709 | E162: 53.67 | F162: 26.84 | G162: 83.44 | H162: 41.72 | I162: 68.56 | J162: 3
A163: 159 | B163: 王小恋 | C163: 麻江县第二小学 | D163: 22603008709 | E163: 56.00 | F163: 28.00 | G163: 79.66 | H163: 39.83 | I163: 67.83 | J163: 4
A164: 160 | B164: 胡海蝶 | C164: 麻江县第二小学 | D164: 22603008709 | E164: 54.67 | F164: 27.34 | G164: 76.06 | H164: 38.03 | I164: 65.37 | J164: 5
A165: 161 | B165: 杨倩 | C165: 麻江县第二小学 | D165: 22603008709 | E165: 53.67 | F165: 26.84 | G165: 63.80 | H165: 31.90 | I165: 58.74 | J165: 6
A166: 162 | B166: 李思雨 | C166: 麻江县第二小学 | D166: 22603008710 | E166: 68.17 | F166: 34.09 | G166: 79.40 | H166: 39.70 | I166: 73.79 | J166: 1 | K166: 是
A167: 163 | B167: 黄晓婷 | C167: 麻江县第二小学 | D167: 22603008710 | E167: 61.17 | F167: 30.59 | G167: 84.00 | H167: 42.00 | I167: 72.59 | J167: 2 | K167: 是
A168: 164 | B168: 王丹 | C168: 麻江县第二小学 | D168: 22603008710 | E168: 60.00 | F168: 30.00 | G168: 83.40 | H168: 41.70 | I168: 71.70 | J168: 3 | K168: 是
A169: 165 | B169: 杜星星 | C169: 麻江县第二小学 | D169: 22603008710 | E169: 57.00 | F169: 28.50 | G169: 85.60 | H169: 42.80 | I169: 71.30 | J169: 4 | K169: 是
A170: 166 | B170: 罗颖红 | C170: 麻江县第二小学 | D170: 22603008710 | E170: 57.00 | F170: 28.50 | G170: 85.00 | H170: 42.50 | I170: 71.00 | J170: 5
A171: 167 | B171: 黄雪蕾 | C171: 麻江县第二小学 | D171: 22603008710 | E171: 60.17 | F171: 30.09 | G171: 79.60 | H171: 39.80 | I171: 69.89 | J171: 6
A172: 168 | B172: 刘一焰 | C172: 麻江县第二小学 | D172: 22603008710 | E172: 57.17 | F172: 28.59 | G172: 82.20 | H172: 41.10 | I172: 69.69 | J172: 7
A173: 169 | B173: 刘津 | C173: 麻江县第二小学 | D173: 22603008710 | E173: 53.83 | F173: 26.92 | G173: 83.80 | H173: 41.90 | I173: 68.82 | J173: 8
A174: 170 | B174: 张菱芫 | C174: 麻江县第二小学 | D174: 22603008710 | E174: 53.33 | F174: 26.67 | G174: 83.80 | H174: 41.90 | I174: 68.57 | J174: 9
A175: 171 | B175: 廖龙英 | C175: 麻江县第二小学 | D175: 22603008710 | E175: 58.17 | F175: 29.09 | G175: 78.80 | H175: 39.40 | I175: 68.49 | J175: 10
A176: 172 | B176: 冉鑫 | C176: 麻江县第二小学 | D176: 22603008710 | E176: 55.33 | F176: 27.67 | G176: 80.60 | H176: =ROUND(G176/2,2) -> 40.30 | I176: 67.97 | J176: 11
A177: 173 | B177: 杨月 | C177: 麻江县第二小学 | D177: 22603008710 | E177: 52.33 | F177: 26.17 | G177: 79.60 | H177: 39.80 | I177: 65.97 | J177: 12
A178: 174 | B178: 宋移发 | C178: 麻江县第二小学 | D178: 22603008711 | G178: 78.80 | I178: 78.80 | J178: 1 | K178: 是 | L178: 直接入围面试
A179: 175 | B179: 蒲蕤 | C179: 麻江县第二小学 | D179: 22603008712 | E179: 55.17 | F179: 27.59 | G179: 81.00 | H179: 40.50 | I179: =F179+H179 -> 68.09 | J179: 1 | K179: 是
A180: 176 | B180: 朱陈维 | C180: 麻江县第二小学 | D180: 22603008712 | E180: 51.50 | F180: 25.75 | G180: 82.80 | H180: 41.40 | I180: 67.15 | J180: 2
A181: 177 | B181: 黎轲瑶 | C181: 麻江县第二小学 | D181: 22603008712 | E181: 54.50 | F181: 27.25 | G181: 76.40 | H181: 38.20 | I181: 65.45 | J181: 3
A182: 178 | B182: 潘雨欣 | C182: 麻江县第二小学 | D182: 22603008713 | E182: 58.67 | F182: 29.34 | G182: 81.00 | H182: 40.50 | I182: 69.84 | J182: 1 | K182: 是
A183: 179 | B183: 陈莎 | C183: 麻江县第二小学 | D183: 22603008713 | E183: 53.00 | F183: 26.50 | G183: 84.60 | H183: 42.30 | I183: 68.80 | J183: 2 | K183: 是
A184: 180 | B184: 向小林 | C184: 麻江县第二小学 | D184: 22603008713 | E184: 53.33 | F184: 26.67 | G184: 84.20 | H184: 42.10 | I184: 68.77 | J184: 3 | K184: 是
A185: 181 | B185: 颜玮 | C185: 麻江县第二小学 | D185: 22603008713 | E185: 59.50 | F185: 29.75 | G185: 77.60 | H185: 38.80 | I185: 68.55 | J185: 4
A186: 182 | B186: 黎萍 | C186: 麻江县第二小学 | D186: 22603008713 | E186: 58.00 | F186: 29.00 | G186: 77.00 | H186: 38.50 | I186: 67.50 | J186: 5
A187: 183 | B187: 王倩 | C187: 麻江县第二小学 | D187: 22603008713 | E187: 53.33 | F187: 26.67 | G187: 81.20 | H187: 40.60 | I187: 67.27 | J187: 6
A188: 184 | B188: 舒雅琪 | C188: 麻江县第二小学 | D188: 22603008713 | E188: 52.00 | F188: 26.00 | G188: 82.40 | H188: 41.20 | I188: 67.20 | J188: 7
A189: 185 | B189: 龙建平 | C189: 麻江县第二小学 | D189: 22603008713 | E189: 54.00 | F189: 27.00 | G189: 79.80 | H189: 39.90 | I189: 66.90 | J189: 8
A190: 186 | B190: 王艳丹 | C190: 麻江县第二小学 | D190: 22603008713 | E190: 52.50 | F190: 26.25 | G190: 78.40 | H190: 39.20 | I190: 65.45 | J190: 9
A191: 187 | B191: 何双红 | C191: 麻江县第二小学 | D191: 22603008713 | E191: 52.00 | F191: 26.00 | G191: 60.00 | H191: 30.00 | I191: 56.00 | J191: 10
A192: 188 | B192: 刘奎良 | C192: 麻江县第二小学 | D192: 22603008714 | E192: 61.00 | F192: 30.50 | G192: 76.48 | H192: 38.24 | I192: 68.74 | J192: 1 | K192: 是
A193: 189 | B193: 龙玖 | C193: 麻江县第二小学 | D193: 22603008714 | E193: 56.50 | F193: 28.25 | G193: 79.96 | H193: 39.98 | I193: 68.23 | J193: 2 | K193: 是
A194: 190 | B194: 罗明青 | C194: 麻江县第二小学 | D194: 22603008714 | E194: 54.17 | F194: 27.09 | G194: 81.36 | H194: 40.68 | I194: 67.77 | J194: 3
A195: 191 | B195: 罗传芳 | C195: 麻江县第二小学 | D195: 22603008714 | E195: 51.67 | F195: 25.84 | G195: 77.51 | H195: 38.76 | I195: 64.60 | J195: 4
A196: 192 | B196: 黄寿平 | C196: 麻江县第二小学 | D196: 22603008714 | E196: 51.50 | F196: 25.75 | G196: 74.42 | H196: 37.21 | I196: 62.96 | J196: 5
A197: 193 | B197: 金化海 | C197: 麻江县第二小学 | D197: 22603008714 | E197: 50.83 | F197: 25.42 | G197: 58.58 | H197: 29.29 | I197: 54.71 | J197: 6
A198: 194 | B198: 田雨浓 | C198: 麻江县第二小学 | D198: 22603008715 | E198: 61.17 | F198: =ROUND(E198/2,2) -> 30.59 | G198: 88.80 | H198: 44.40 | I198: =F198+H198 -> 74.99 | J198: 1 | K198: 是
A199: 195 | B199: 李江铃 | C199: 麻江县第二小学 | D199: 22603008715 | E199: 58.50 | F199: 29.25 | G199: 83.72 | H199: 41.86 | I199: 71.11 | J199: 2 | K199: 是
A200: 196 | B200: 潘蓝蓝 | C200: 麻江县第二小学 | D200: 22603008715 | E200: 53.83 | F200: 26.92 | G200: 82.31 | H200: =ROUND(G200/2,2) -> 41.16 | I200: 68.08 | J200: 3
... 85 more rows
